bitfinex/quotes_BTCUSD_20250109
["timestamp","ask_amount","ask_price","bid_price","bid_amount"]
[1736424558020,1.41657626,93465.0,93464.0,0.71111206]
[1736424558466,1.41657626,93465.0,93464.0,0.70911206]
[1736424558693,1.41657626,93465.0,93464.0,0.71811206]
[1736424558872,1.41657626,93465.0,93464.0,0.61111206]
[1736424559116,1.41657626,93465.0,93464.0,0.71111206]
[1736424559328,1.41657626,93465.0,93464.0,0.71811206]
[1736424559764,1.41657626,93465.0,93464.0,0.71111206]
[1736424559936,1.41657626,93465.0,93464.0,0.70211206]
[1736424560150,1.41657626,93465.0,93464.0,0.70911206]
[1736424560346,1.41757626,93465.0,93464.0,0.71811206]
[1736424560553,1.41657626,93465.0,93464.0,0.70911206]
[1736424560985,1.41757626,93465.0,93464.0,0.71811206]
[1736424561123,1.41657626,93465.0,93464.0,0.70911206]
[1736424561319,1.41657626,93465.0,93464.0,0.70211206]
[1736424561566,1.41757626,93465.0,93464.0,0.90240249]
[1736424561773,1.41757626,93465.0,93464.0,0.91040249]
[1736424561977,1.41657626,93465.0,93464.0,0.90140249]
[1736424562175,1.13300529,93465.0,93464.0,1.64380639]
[1736424562378,0.79935306,93465.0,93464.0,1.45251596]
[1736424562632,0.76383566,93465.0,93464.0,1.46151596]
[1736424562976,0.65684566,93465.0,93464.0,1.45251596]
[1736424563176,0.65684566,93465.0,93464.0,1.56541596]
[1736424563378,0.62928413,93465.0,93464.0,1.58341596]
[1736424563584,0.58016395,93465.0,93464.0,1.57441596]
[1736424563783,0.51351657,93465.0,93464.0,1.60769381]
[1736424563988,0.30216307,93465.0,93464.0,1.61669381]
[1736424564934,0.23796907,93465.0,93464.0,1.61669381]
[1736424565149,0.19517307,93465.0,93464.0,1.61669381]
[1736424565964,0.00950834,93465.0,93464.0,1.61669381]
[1736424566223,3.4e-07,93465.0,93464.0,1.61669381]
[1736424569289,3.4e-07,93465.0,93464.0,1.51669381]
[1736424569492,3.4e-07,93465.0,93464.0,1.61669381]
[1736424569697,0.0001706,93506.0,93505.0,1.10869166]
[1736424569911,0.0001706,93506.0,93505.0,1.2728873]
[1736424570926,0.0001706,93506.0,93505.0,1.27303732]
[1736424571148,0.0001706,93506.0,93505.0,1.17903732]
[1736424571375,0.0498706,93506.0,93505.0,1.05603732]
[1736424571587,0.0498706,93506.0,93505.0,0.86914144]
[1736424572621,0.1311706,93506.0,93505.0,0.65524944]
[1736424575731,0.1311706,93506.0,93505.0,0.00615002]
[1736424577126,0.1311706,93506.0,93505.0,0.00015002]
[1736424577335,0.1311706,93506.0,93505.0,0.00115002]
[1736424577701,0.1311706,93506.0,93505.0,0.00315002]
[1736424577912,0.1311706,93506.0,93505.0,0.00015002]
[1736424578117,0.1311706,93506.0,93505.0,0.00215002]
[1736424578319,0.1311706,93506.0,93505.0,0.00415002]
[1736424578731,0.1311706,93506.0,93505.0,0.00215002]
[1736424578935,0.1311706,93506.0,93505.0,0.00015002]
[1736424579314,0.1311706,93506.0,93505.0,0.00415002]
[1736424579635,0.1311706,93506.0,93505.0,0.00515002]
[1736424580856,0.1311706,93506.0,93505.0,0.00415002]
[1736424581257,0.1311706,93506.0,93505.0,0.00615002]
[1736424583097,0.1311706,93506.0,93505.0,0.11044978]
[1736424583298,0.1311706,93506.0,93505.0,0.16427546]
[1736424585553,0.0001706,93506.0,93505.0,0.26427546]
[1736424586355,0.0768,93513.0,93512.0,0.213876]
[1736424586589,0.0768,93513.0,93512.0,0.31817576]
[1736424587986,0.0768,93513.0,93512.0,0.32717576]
[1736424588202,0.0768,93513.0,93512.0,0.38919242]
[1736424588403,0.0768,93513.0,93512.0,0.32717576]
[1736424588600,0.0768,93513.0,93512.0,0.33117576]
[1736424588810,0.0768,93513.0,93512.0,0.32217576]
[1736424589177,0.0768,93513.0,93512.0,0.32717576]
[1736424589421,0.0768,93513.0,93512.0,0.39129777]
[1736424589821,0.0768,93513.0,93512.0,0.33481576]
[1736424590458,0.0768,93513.0,93512.0,0.32581576]
[1736424590889,0.0768,93513.0,93512.0,0.33381576]
[1736424591063,0.0768,93513.0,93512.0,0.32581576]
[1736424591481,0.0768,93513.0,93512.0,0.33481576]
[1736424591665,0.0768,93513.0,93512.0,0.33881576]
[1736424592228,0.0768,93513.0,93512.0,0.32581576]
[1736424592539,0.0768,93513.0,93512.0,0.33081576]
[1736424593182,0.0768,93513.0,93512.0,0.32317576]
[1736424594185,0.0768,93513.0,93512.0,0.33217576]
[1736424594397,7.232568,93513.0,93512.0,0.32069576]
[1736424594833,7.23197719,93513.0,93512.0,0.32969576]
[1736424600334,7.23197719,93513.0,93512.0,0.39483377]
[1736424600548,7.155768,93513.0,93512.0,0.76783377]
[1736424600744,7.155768,93513.0,93512.0,1.3232707]
[1736424601174,7.155768,93513.0,93512.0,1.35666403]
[1736424601794,7.155768,93513.0,93512.0,1.35726403]
[1736424602003,7.155768,93513.0,93512.0,1.34326403]
[1736424602211,7.048833,93513.0,93512.0,1.4227707]
[1736424602432,7.048833,93513.0,93512.0,1.47113704]
[1736424602831,7.027446,93513.0,93512.0,1.47113704]
[1736424603032,6.984672,93513.0,93512.0,1.47113704]
[1736424603238,6.941898,93513.0,93512.0,1.47113704]
[1736424603446,6.941898,93513.0,93512.0,1.78974094]
[1736424603852,6.82941279,93513.0,93512.0,1.77474094]
[1736424604062,6.78663879,93513.0,93512.0,1.77474094]
[1736424604264,6.78663879,93513.0,93512.0,1.78974094]
[1736424604594,6.78663879,93513.0,93512.0,1.78074094]
[1736424604763,6.78663879,93513.0,93512.0,1.78974094]
[1736424605017,6.76525179,93513.0,93512.0,1.78374094]
[1736424605208,6.72247779,93513.0,93512.0,1.79274094]
[1736424605380,6.67970379,93513.0,93512.0,1.79274094]
[1736424605584,6.64069378,93513.0,93512.0,1.79274094]
[1736424605943,6.502153,93513.0,93512.0,1.79274094]
[1736424606146,6.459379,93513.0,93512.0,2.65644094]
[1736424606359,6.45668801,93513.0,93512.0,2.65644094]
[1736424606534,5.86011598,93513.0,93512.0,2.59130293]
[1736424606748,5.13938694,93513.0,93512.0,2.04650327]
[1736424606946,5.01982694,93513.0,93512.0,2.04650327]
[1736424607402,4.95566594,93513.0,93512.0,2.04650327]
[1736424607808,4.91773594,93513.0,93512.0,2.03750327]
[1736424608021,4.70224032,93513.0,93512.0,2.03750327]
[1736424608203,4.35747602,93513.0,93512.0,2.02950327]
[1736424608438,4.18884728,93513.0,93512.0,2.03050327]
[1736424608648,4.07418917,93513.0,93512.0,2.03050327]
[1736424608857,4.03353917,93513.0,93512.0,2.03050327]
[1736424609069,3.75126117,93513.0,93512.0,2.03050327]
[1736424609248,3.56275311,93513.0,93512.0,2.03050327]
[1736424609600,3.10871582,93513.0,93512.0,2.03050327]
[1736424609803,3.07005225,93513.0,93512.0,2.03050327]
[1736424610011,2.83515725,93513.0,93512.0,2.03050327]
[1736424610262,2.81299381,93513.0,93512.0,2.03050327]
[1736424610485,2.49786489,93513.0,93512.0,2.03050327]
[1736424610670,2.27669888,93513.0,93512.0,2.00326051]
[1736424610892,2.26181604,93513.0,93512.0,2.00326051]
[1736424611081,2.12184154,93513.0,93512.0,2.00326051]
[1736424611332,2.10045454,93513.0,93512.0,2.00326051]
[1736424611513,1.77912629,93513.0,93512.0,2.00326051]
[1736424611855,1.43641104,93513.0,93512.0,2.00326051]
[1736424612295,1.43641104,93513.0,93512.0,1.90326051]
[1736424612296,1.02953479,93513.0,93512.0,1.90326051]
[1736424612497,1.02953479,93513.0,93512.0,1.72500051]
[1736424612699,1.02953479,93513.0,93512.0,1.87500051]
[1736424612914,0.96537379,93513.0,93512.0,1.84163417]
[1736424613364,0.96537379,93513.0,93512.0,1.86463417]
[1736424613365,0.92259979,93513.0,93512.0,1.86463417]
[1736424614044,0.7982475,93513.0,93512.0,1.86463417]
[1736424614572,0.7982475,93513.0,93512.0,1.54573417]
[1736424614980,0.7340865,93513.0,93512.0,1.54573417]
[1736424615182,0.7126995,93513.0,93512.0,1.57885487]
[1736424615432,0.6913125,93513.0,93512.0,1.57885487]
[1736424615781,0.6699255,93513.0,93512.0,1.57885487]
[1736424616187,0.6271515,93513.0,93512.0,1.57885487]
[1736424616388,0.5843775,93513.0,93512.0,1.57885487]
[1736424617511,0.5416035,93513.0,93512.0,1.57885487]
[1736424617730,0.4774425,93513.0,93512.0,1.57885487]
[1736424617912,0.45310215,93513.0,93512.0,1.57885487]
[1736424618115,0.33008415,93513.0,93512.0,1.57885487]
[1736424621018,0.26952715,93513.0,93512.0,1.57885487]
[1736424621221,0.00774309,93513.0,93512.0,1.69175487]
[1736424621458,0.0001706,93540.0,93539.0,1.4502179]
[1736424621663,0.0001706,93540.0,93539.0,1.56211766]
[1736424622081,0.0001706,93540.0,93539.0,1.67501766]
[1736424622267,2e-07,93544.0,93543.0,0.676705]
[1736424622535,2e-07,93544.0,93543.0,0.80400476]
[1736424622747,2e-07,93544.0,93543.0,0.83712836]
[1736424622951,2e-07,93544.0,93543.0,0.71160476]
[1736424623163,0.1280002,93544.0,93543.0,0.71161888]
[1736424623606,0.1280002,93544.0,93543.0,0.81161888]
[1736424623826,0.1280002,93544.0,93543.0,0.82061888]
[1736424624656,0.1280002,93544.0,93543.0,0.53470476]
[1736424624843,0.1280002,93544.0,93543.0,0.54370476]
[1736424625002,0.1280002,93544.0,93543.0,0.44370476]
[1736424625230,0.1280002,93544.0,93543.0,0.54370476]
[1736424626817,0.1280002,93544.0,93543.0,0.69370476]
[1736424627033,0.0828002,93544.0,93543.0,0.71670476]
[1736424627687,2e-07,93544.0,93543.0,0.82960476]
[1736424629405,2e-07,93544.0,93543.0,0.86279902]
[1736424631463,0.0001706,93551.0,93550.0,0.563789]
[1736424631604,0.0001706,93551.0,93550.0,0.72443304]
[1736424632148,0.0799706,93551.0,93550.0,0.70143304]
[1736424632793,0.0799706,93551.0,93550.0,0.71043304]
[1736424633637,0.0799706,93551.0,93550.0,0.61803304]
[1736424634029,0.0799706,93551.0,93550.0,0.71803304]
[1736424634170,0.0799706,93551.0,93550.0,0.72703304]
[1736424634856,0.0799706,93551.0,93550.0,0.57703304]
[1736424635116,0.0799706,93551.0,93550.0,0.46943304]
[1736424635263,0.1287706,93551.0,93550.0,0.57703304]
[1736424636136,0.1287706,93551.0,93550.0,0.72703304]
[1736424636315,0.1287706,93551.0,93550.0,0.71803304]
[1736424636523,0.1287706,93551.0,93550.0,0.72603304]
[1736424636674,0.1287706,93551.0,93550.0,1.01237148]
[1736424636916,0.1287706,93551.0,93550.0,0.71703304]
[1736424637119,0.1287706,93551.0,93550.0,0.70903304]
[1736424637371,0.1287706,93551.0,93550.0,0.71803304]
[1736424638131,0.1287706,93551.0,93550.0,0.70903304]
[1736424638336,0.1287706,93551.0,93550.0,0.55903304]
[1736424638696,0.1287706,93551.0,93550.0,0.47703304]
[1736424638867,0.1287706,93551.0,93550.0,0.37703304]
[1736424639283,0.1287706,93551.0,93550.0,0.47703304]
[1736424639481,0.1287706,93551.0,93550.0,0.57703304]
[1736424640052,0.1287706,93551.0,93550.0,0.37703304]
[1736424640256,0.1287706,93551.0,93550.0,0.57703304]
[1736424640599,0.1287706,93551.0,93550.0,0.47703304]
[1736424640771,0.1287706,93551.0,93550.0,0.57703304]
[1736424642162,0.1287706,93551.0,93550.0,0.86387121]
[1736424642665,0.1287706,93551.0,93550.0,0.57703304]
[1736424644023,0.01062412,93571.0,93550.0,0.57703304]
[1736424644024,0.10565128,93580.0,93556.0,0.1]
[1736424644198,0.10565128,93580.0,93557.0,0.10429976]
[1736424644413,0.10565128,93580.0,93557.0,0.31807176]
[1736424644772,0.01034451,93580.0,93560.0,0.1]
[1736424645024,0.0001704,93589.0,93573.0,0.213734]
[1736424645163,0.01069463,93587.0,93576.0,0.213729]
[1736424645364,0.01069463,93587.0,93577.0,0.10429976]
[1736424645867,0.0001706,93587.0,93579.0,0.1]
[1736424646140,0.0001706,93587.0,93580.0,0.31801976]
[1736424646633,0.0001706,93587.0,93581.0,0.1]
[1736424646843,0.0812704,93582.0,93581.0,0.20429976]
[1736424647052,0.08177059,93582.0,93581.0,0.20429976]
[1736424647872,0.08177059,93582.0,93581.0,0.75809976]
[1736424648126,0.08177059,93582.0,93581.0,0.85809976]
[1736424648956,0.08177059,93582.0,93581.0,0.86609976]
[1736424649358,0.08177059,93582.0,93581.0,0.76609976]
[1736424649565,0.08177059,93582.0,93581.0,0.86609976]
[1736424651193,0.00067059,93582.0,93581.0,0.86609976]
[1736424651612,0.00067059,93582.0,93581.0,1.03909976]
[1736424651832,5.9e-07,93582.0,93581.0,1.07243046]
[1736424652667,5.9e-07,93582.0,93581.0,1.06443046]
[1736424652874,5.9e-07,93582.0,93581.0,1.07343046]
[1736424653770,5.9e-07,93582.0,93581.0,1.0840229]
[1736424654157,5.9e-07,93582.0,93581.0,1.0660229]
[1736424654371,5.9e-07,93582.0,93581.0,1.06602239]
[1736424654583,5.9e-07,93582.0,93581.0,1.08402239]
[1736424654786,5.9e-07,93582.0,93581.0,1.07502239]
[1736424655239,5.9e-07,93582.0,93581.0,1.40755716]
[1736424655987,5.9e-07,93582.0,93581.0,1.08402239]
[1736424656182,5.9e-07,93582.0,93581.0,1.40262629]
[1736424657613,5.9e-07,93582.0,93581.0,1.39362629]
[1736424658229,5.9e-07,93582.0,93581.0,1.40262629]
[1736424658640,0.0001706,93587.0,93586.0,0.586707]
[1736424658843,0.0001706,93587.0,93586.0,0.72433746]
[1736424659452,0.0001706,93587.0,93586.0,1.58774136]
[1736424660294,0.0001706,93587.0,93586.0,1.53243129]
[1736424660494,0.0001706,93587.0,93586.0,1.50670059]
[1736424660909,0.0001706,93587.0,93586.0,1.52470059]
[1736424661603,0.0001706,93587.0,93586.0,1.79374016]
[1736424661803,0.0001706,93587.0,93586.0,1.80274016]
[1736424662057,0.0001706,93587.0,93586.0,1.81174016]
[1736424662266,0.0001706,93587.0,93586.0,1.52470059]
[1736424662851,0.0001706,93587.0,93586.0,1.42470059]
[1736424663412,0.0001706,93587.0,93586.0,1.52470059]
[1736424664809,0.0001704,93589.0,93588.0,0.53139193]
[1736424665014,0.0001704,93589.0,93588.0,0.53569169]
[1736424665287,0.0001704,93589.0,93588.0,0.51269169]
[1736424665491,0.0759704,93589.0,93588.0,1.28140566]
[1736424665697,0.0759704,93589.0,93588.0,0.64420566]
[1736424666332,0.0759704,93589.0,93588.0,0.42290366]
[1736424666546,0.1244704,93589.0,93588.0,0.43050366]
[1736424666955,0.1254704,93589.0,93588.0,0.43950366]
[1736424667187,0.1244704,93589.0,93588.0,0.43050366]
[1736424667614,0.1254704,93589.0,93588.0,0.43950366]
[1736424667833,0.1264704,93589.0,93588.0,0.59319359]
[1736424668039,0.0021704,93589.0,93588.0,0.74319359]
[1736424668250,0.0011704,93589.0,93588.0,0.75719359]
[1736424668465,0.0011704,93589.0,93588.0,0.76764227]
[1736424668667,0.0021704,93589.0,93588.0,0.77664227]
[1736424669079,0.0021704,93589.0,93588.0,1.32144227]
[1736424669697,0.0021704,93589.0,93588.0,1.31244227]
[1736424669903,0.0011704,93589.0,93588.0,1.31244227]
[1736424670115,0.0021704,93589.0,93588.0,1.35463581]
[1736424670338,0.0011704,93589.0,93588.0,1.33663581]
[1736424670543,0.00011975,93589.0,93588.0,1.33663581]
[1736424670743,0.00111975,93589.0,93588.0,1.35363581]
[1736424670953,0.0001706,93596.0,93595.0,1.15809383]
[1736424671175,0.0001706,93596.0,93595.0,1.53227313]
[1736424671176,0.00032053,93596.0,93595.0,1.53227313]
[1736424673518,0.07448651,93618.0,93617.0,0.46329383]
[1736424673728,0.07448651,93618.0,93617.0,0.57519359]
[1736424674924,0.07448651,93618.0,93617.0,0.74019359]
[1736424675123,0.0001702,93620.0,93619.0,1.18109383]
[1736424675375,0.0001702,93620.0,93619.0,1.28539359]
[1736424675546,0.0001702,93620.0,93619.0,1.3186029]
[1736424675958,5e-07,93632.0,93631.0,0.14468993]
[1736424676117,0.00015035,93632.0,93631.0,0.668803]
[1736424676322,0.0456,93660.0,93637.0,0.50827993]
[1736424676641,0.0764,93654.0,93637.0,0.668789]
[1736424676844,0.0764,93654.0,93637.0,0.62409907]
[1736424676963,0.0764,93654.0,93637.0,0.653389]
[1736424677185,0.0764,93654.0,93637.0,0.645789]
[1736424677533,0.0764,93654.0,93637.0,0.662389]
[1736424677875,0.0764,93654.0,93637.0,0.653389]
[1736424678078,0.0764,93654.0,93637.0,0.662389]
[1736424678496,0.0764,93654.0,93637.0,0.61909907]
[1736424678707,0.0764,93654.0,93637.0,0.63817969]
[1736424678905,0.0764,93654.0,93637.0,0.67136858]
[1736424679273,0.0764,93654.0,93637.0,0.63817969]
[1736424679475,0.0764,93654.0,93637.0,0.67138477]
[1736424679679,0.0764,93654.0,93637.0,0.69438477]
[1736424680482,0.0764,93654.0,93637.0,1.55778867]
[1736424680902,8.51e-05,93658.0,93637.0,1.55778867]
[1736424681517,8.51e-05,93658.0,93637.0,1.55018867]
[1736424681719,8.51e-05,93658.0,93637.0,1.55778867]
[1736424682975,8.51e-05,93658.0,93637.0,1.98034741]
[1736424683549,8.51e-05,93658.0,93637.0,1.55778867]
[1736424683754,8.51e-05,93658.0,93637.0,1.54878867]
[1736424683952,8.51e-05,93658.0,93637.0,1.53978867]
[1736424684210,8.51e-05,93658.0,93637.0,1.55778867]
[1736424684835,8.51e-05,93658.0,93637.0,1.51309874]
[1736424684980,8.51e-05,93658.0,93637.0,1.53978867]
[1736424685188,8.51e-05,93658.0,93637.0,1.54878867]
[1736424685404,0.0798,93639.0,93637.0,1.54878867]
[1736424685594,0.0798,93639.0,93637.0,1.44878867]
[1736424685993,0.0492704,93638.0,93637.0,1.32349874]
[1736424686151,0.0492704,93638.0,93637.0,0.65309366]
[1736424686360,0.1290704,93638.0,93637.0,0.43950366]
[1736424686561,0.1290704,93638.0,93637.0,0.11189976]
[1736424686766,0.1290704,93638.0,93637.0,0.12089976]
[1736424686966,0.1290704,93638.0,93637.0,0.12989976]
[1736424687172,0.1290704,93638.0,93637.0,0.12089976]
[1736424687439,0.1249704,93638.0,93637.0,0.0076]
[1736424687636,0.1249704,93638.0,93637.0,0.009]
[1736424687857,0.0482704,93638.0,93636.0,0.0076]
[1736424688065,0.0767,93637.0,93636.0,0.0076]
[1736424688474,0.0767,93637.0,93634.0,0.0076]
[1736424688691,0.0767,93637.0,93635.0,0.10429976]
[1736424690005,0.0767,93637.0,93636.0,0.005]
[1736424690659,0.0767,93637.0,93636.0,0.009]
[1736424690867,0.0767,93637.0,93635.0,0.10929976]
[1736424691272,0.0767,93637.0,93636.0,0.009]
[1736424692090,0.0767,93637.0,93635.0,0.10429976]
[1736424692229,0.0767,93637.0,93635.0,0.11329976]
[1736424692630,0.0767,93637.0,93636.0,0.004]
[1736424693279,0.34700307,93636.0,93635.0,0.009]
[1736424693597,0.0781,93636.0,93635.0,0.009]
[1736424693742,0.0781,93636.0,93632.0,0.0076]
[1736424693937,0.0781,93636.0,93635.0,0.003]
[1736424694552,0.0781,93636.0,93632.0,0.10429976]
[1736424694757,0.0781,93636.0,93635.0,0.009]
[1736424695645,0.0781,93636.0,93635.0,0.10429976]
[1736424696049,0.0781,93636.0,93635.0,0.10929976]
[1736424698186,0.0781,93636.0,93635.0,0.11829976]
[1736424698375,0.291693,93636.0,93635.0,0.014]
[1736424699654,0.0781,93636.0,93635.0,0.014]
[1736424703538,0.291693,93636.0,93635.0,0.014]
[1736424703740,0.0781,93636.0,93635.0,0.014]
[1736424704088,0.0781,93636.0,93635.0,0.11829976]
[1736424705201,0.0001704,93638.0,93635.0,0.11829976]
[1736424705403,0.0001704,93638.0,93636.0,0.31789276]
[1736424706047,0.0001704,93638.0,93637.0,0.3186039]
[1736424706257,0.0001704,93638.0,93637.0,0.42290366]
[1736424706883,0.0723819,93643.0,93642.0,0.213579]
[1736424707086,0.0723819,93643.0,93642.0,0.31787876]
[1736424707760,0.0473,93647.0,93642.0,0.53145776]
[1736424707973,8.51e-05,93658.0,93642.0,0.53145776]
[1736424707974,0.0456,93657.0,93644.0,0.213574]
[1736424708202,0.0456,93657.0,93644.0,0.31787376]
[1736424708609,8.081e-05,93645.0,93644.0,0.31787376]
[1736424709647,8.081e-05,93645.0,93644.0,0.32687376]
[1736424710024,0.00108081,93645.0,93644.0,0.33287376]
[1736424710400,0.00108081,93645.0,93644.0,0.65147766]
[1736424714244,0.00108081,93645.0,93644.0,0.75147766]
[1736424714445,0.00108081,93645.0,93644.0,0.81916759]
[1736424714656,0.00108081,93645.0,93644.0,0.85243612]
[1736424715514,0.00108081,93645.0,93644.0,1.10504764]
[1736424715936,0.00108081,93645.0,93644.0,0.81916759]
[1736424716342,0.00108081,93645.0,93644.0,0.83165232]
[1736424717287,0.00108081,93645.0,93644.0,1.11901722]
[1736424717857,0.00108081,93645.0,93644.0,1.01492515]
[1736424718176,0.00108081,93645.0,93644.0,1.09162515]
[1736424719263,8.081e-05,93645.0,93644.0,1.63042515]
[1736424719460,8.081e-05,93645.0,93644.0,1.62142515]
[1736424719659,0.00108081,93645.0,93644.0,1.63042515]
[1736424719862,0.00108081,93645.0,93644.0,1.63942515]
[1736424720194,0.00108081,93645.0,93644.0,1.51803522]
[1736424720354,0.00108081,93645.0,93644.0,1.57036515]
[1736424722273,0.00108081,93645.0,93644.0,1.61616515]
[1736424723057,0.00108081,93645.0,93644.0,1.57036515]
[1736424724027,0.00108081,93645.0,93644.0,1.52567522]
[1736424724673,0.00108081,93645.0,93644.0,1.54736515]
[1736424725136,0.00108081,93645.0,93644.0,1.50160759]
[1736424725326,0.00108081,93645.0,93644.0,1.40160759]
[1736424725535,0.00108081,93645.0,93644.0,1.78878054]
[1736424725741,0.00108081,93645.0,93644.0,1.81178054]
[1736424726384,0.00108081,93645.0,93644.0,1.68878054]
[1736424726624,0.00108081,93645.0,93644.0,0.94937061]
[1736424726964,0.00108081,93645.0,93644.0,0.66219766]
[1736424727405,0.00108081,93645.0,93644.0,0.65447766]
[1736424727606,0.00108081,93645.0,93644.0,0.76219766]
[1736424727809,0.00108081,93645.0,93644.0,0.95365678]
[1736424728012,0.00108081,93645.0,93644.0,0.94465678]
[1736424728184,8.081e-05,93645.0,93644.0,0.93565678]
[1736424728388,8.081e-05,93645.0,93644.0,0.95265678]
[1736424728600,8.081e-05,93645.0,93644.0,0.94365678]
[1736424729013,8.081e-05,93645.0,93644.0,0.75319766]
[1736424729423,8.081e-05,93645.0,93644.0,0.75819766]
[1736424729634,0.04717593,93659.0,93658.0,0.213542]
[1736424729857,0.04717593,93659.0,93658.0,0.10429976]
[1736424730074,0.077,93662.0,93659.0,0.21354]
[1736424730290,0.077,93662.0,93661.0,0.213536]
[1736424730495,0.077,93662.0,93661.0,0.10429976]
[1736424730909,0.07714982,93662.0,93661.0,0.10429976]
[1736424731325,0.07714982,93662.0,93655.0,0.19147453]
[1736424731326,0.05531007,93660.0,93655.0,0.19147453]
[1736424731533,0.0767,93658.0,93656.0,0.10429976]
[1736424732783,0.0492,93657.0,93656.0,0.11229976]
[1736424733209,0.0492,93657.0,93656.0,0.10429976]
[1736424733386,0.0492,93657.0,93656.0,0.10729976]
[1736424734529,0.0492,93657.0,93656.0,0.32984676]
[1736424734740,0.0492,93657.0,93656.0,0.11629976]
[1736424734955,0.0492,93657.0,93656.0,0.10429976]
[1736424735172,0.0492,93657.0,93656.0,0.11729976]
[1736424737205,0.10451007,93657.0,93656.0,0.013]
[1736424737419,0.18641007,93657.0,93656.0,0.013]
[1736424738877,0.1311,93657.0,93656.0,0.013]
[1736424739082,0.1311,93657.0,93656.0,0.11729976]
[1736424742580,0.18641007,93657.0,93656.0,0.013]
[1736424745102,0.33641007,93657.0,93656.0,0.013]
[1736424745516,0.33641007,93657.0,93656.0,0.004]
[1736424745737,0.290667,93647.0,93646.0,0.00772]
[1736424745985,0.34597707,93647.0,93646.0,0.00772]
[1736424746389,0.34597707,93647.0,93645.0,0.005]
[1736424748165,0.13241007,93647.0,93646.0,0.009]
[1736424748369,0.0771,93647.0,93646.0,0.11329976]
[1736424748550,0.13241007,93654.0,93647.0,0.213567]
[1736424748792,0.0771,93654.0,93649.0,0.213563]
[1736424749001,0.0771,93654.0,93650.0,0.10429976]
[1736424749423,0.0771,93654.0,93651.0,0.213558]
[1736424749634,0.0771,93654.0,93652.0,0.10429976]
[1736424749848,0.13241007,93654.0,93652.0,0.10429976]
[1736424750269,0.0771,93654.0,93652.0,0.10429976]
[1736424750475,0.13241007,93654.0,93652.0,0.10429976]
[1736424750705,0.0771,93654.0,93652.0,0.10429976]
[1736424751442,0.148945,93664.0,93652.0,0.10429976]
[1736424751646,0.213513,93671.0,93652.0,0.10444958]
[1736424751900,0.213529,93664.0,93652.0,0.10744958]
[1736424752273,0.213529,93664.0,93652.0,0.10444958]
[1736424752514,8.51e-05,93681.0,93652.0,0.11344958]
[1736424752718,0.00141969,93675.0,93654.0,0.213552]
[1736424752922,0.00141969,93675.0,93656.0,0.213547]
[1736424753098,0.213521,93668.0,93657.0,0.10429976]
[1736424754466,0.213511,93672.0,93658.0,0.213542]
[1736424754668,0.0776,93674.0,93659.0,0.10429976]
[1736424754874,0.07661659,93674.0,93659.0,0.10429976]
[1736424755081,0.08915453,93674.0,93659.0,0.10429976]
[1736424755287,0.213517,93670.0,93659.0,0.10429976]
[1736424756283,0.213517,93670.0,93659.0,0.11029976]
[1736424756632,0.213517,93670.0,93659.0,0.10429976]
[1736424757041,0.213508,93673.0,93659.0,0.11029976]
[1736424757320,0.213508,93673.0,93659.0,0.32383876]
[1736424757533,0.08915453,93674.0,93660.0,0.213537]
[1736424757721,0.08915453,93674.0,93661.0,0.10429976]
[1736424759345,0.08915453,93674.0,93661.0,0.11129976]
[1736424760830,0.08915453,93674.0,93661.0,0.11610376]
[1736424761027,0.08915453,93674.0,93662.0,0.213533]
[1736424761313,0.08915453,93674.0,93663.0,0.11205976]
[1736424762169,0.08915453,93674.0,93665.0,0.19147453]
[1736424762372,0.08915453,93674.0,93666.0,0.10429976]
[1736424762787,0.08915453,93674.0,93667.0,0.19147453]
[1736424763361,0.213508,93673.0,93667.0,0.19147453]
[1736424764424,0.213508,93673.0,93666.0,0.30277429]
[1736424764871,0.213517,93670.0,93666.0,0.30277429]
[1736424765077,0.00133447,93669.0,93667.0,0.002]
[1736424765241,0.0452,93668.0,93667.0,0.002]
[1736424765441,0.0452,93668.0,93665.0,0.19147453]
[1736424765442,0.472241,93668.0,93665.0,0.19147453]
[1736424765803,0.213524,93666.0,93665.0,0.19147453]
[1736424766014,0.25872,93668.0,93661.0,0.004804]
[1736424766234,0.0013346,93667.0,93661.0,0.004804]
[1736424766450,0.213524,93666.0,93661.0,0.004804]
[1736424766875,0.427048,93666.0,93661.0,0.004804]
[1736424767078,0.427048,93666.0,93665.0,0.006]
[1736424767297,0.427048,93666.0,93661.0,0.004804]
[1736424767713,0.427048,93666.0,93665.0,0.003]
[1736424768325,0.213524,93666.0,93661.0,0.004804]
[1736424768532,0.213524,93666.0,93661.0,0.008804]
[1736424768979,0.213516,93670.0,93662.0,0.10429976]
[1736424769203,0.30266053,93674.0,93662.0,0.10429976]
[1736424769407,0.30266053,93674.0,93665.0,0.004]
[1736424769611,0.30266053,93674.0,93666.0,0.10429976]
[1736424770066,0.01253794,93674.0,93666.0,0.10429976]
[1736424770512,0.2135911,93675.0,93666.0,0.10429976]
[1736424770722,0.2135911,93675.0,93667.0,0.19147453]
[1736424770931,0.2135901,93675.0,93668.0,0.10429976]
[1736424772045,0.2135901,93675.0,93669.0,0.19147453]
[1736424772246,0.2135901,93675.0,93669.0,0.29577429]
[1736424772875,0.22581375,93675.0,93669.0,0.29577429]
[1736424773129,0.22581375,93675.0,93669.0,0.19147453]
[1736424773130,0.0824,93671.0,93669.0,0.19147453]
[1736424773345,0.04673455,93670.0,93669.0,0.19147453]
[1736424773815,0.19673455,93670.0,93669.0,0.19147453]
[1736424774044,0.41024955,93670.0,93669.0,0.009]
[1736424774263,0.63621476,93670.0,93669.0,0.009]
[1736424774475,0.25,93669.0,93657.0,0.19147453]
[1736424774689,0.25,93669.0,93651.0,0.12]
[1736424774690,0.213542,93658.0,93651.0,0.12]
[1736424774926,0.213554,93653.0,93651.0,0.12]
[1736424775138,0.363554,93653.0,93651.0,0.12]
[1736424775348,0.408754,93653.0,93651.0,0.12]
[1736424776338,0.408754,93653.0,93652.0,0.00514982]
[1736424776729,0.408754,93653.0,93652.0,0.00014982]
[1736424776899,0.408754,93653.0,93652.0,0.00514982]
[1736424777103,0.408754,93653.0,93652.0,0.00614982]
[1736424778035,0.403754,93653.0,93652.0,0.00614982]
[1736424778839,0.41582526,93653.0,93652.0,0.00614982]
[1736424780277,0.37062526,93653.0,93652.0,0.00614982]
[1736424792975,0.22062526,93653.0,93652.0,0.00614982]
[1736424793180,0.340332,93663.0,93652.0,0.00614982]
[1736424793181,0.213532,93663.0,93652.0,0.00614982]
[1736424793404,0.01169857,93659.0,93653.0,0.10429976]
[1736424793610,0.213512,93672.0,93653.0,0.42290366]
[1736424793823,0.213519,93669.0,93654.0,0.0473]
[1736424794066,0.213513,93671.0,93656.0,0.213547]
[1736424794279,0.213513,93671.0,93657.0,0.10429976]
[1736424794492,0.213513,93671.0,93658.0,0.19147453]
[1736424794698,0.213507,93674.0,93659.0,0.10429976]